bitfinex-derivatives/quotes_SOLF0:USTF0_20241217
["timestamp","ask_amount","ask_price","bid_price","bid_amount"]
[1734475352260,6.76641838,223.45,223.36,9.28641838]
[1734475352261,2.2376,223.44,223.38,2.2381]
[1734475353563,9.00401838,223.44,223.38,2.2381]
[1734475354266,2.2534,223.47,223.31,2.2389]
[1734475354267,6.76641838,223.42,223.31,2.2389]
[1734475354464,2.373,223.41,223.32,6.76641838]
[1734475355461,2.2381,223.4,223.32,9.00511838]
[1734475355666,2.2381,223.4,223.33,6.76641838]
[1734475356067,2.2381,223.4,223.34,2.54]
[1734475357665,2.373,223.41,223.34,2.54]
[1734475357865,6.76641838,223.38,223.29,5.30651374]
[1734475358076,2.2907,223.37,223.29,12.07293212]
[1734475358472,2.2384,223.36,223.29,12.07293212]
[1734475358971,2.2386,223.34,223.29,5.30651374]
[1734475359369,2.2386,223.34,223.29,12.07293212]
[1734475359870,2.2386,223.34,223.29,5.30651374]
[1734475360167,2.2386,223.34,223.29,12.07293212]
[1734475362269,2.2385,223.35,223.3,2.54]
[1734475365279,9.05711838,223.37,223.3,2.54]
[1734475366171,9.05711838,223.37,223.29,12.07293212]
[1734475366373,9.05711838,223.37,223.31,2.54]
[1734475366576,2.2384,223.36,223.31,2.54]
[1734475368676,2.2384,223.36,223.31,9.30641838]
[1734475368876,6.76641838,223.38,223.31,9.30641838]
[1734475369076,9.00461838,223.38,223.31,9.30641838]
[1734475370080,2.2383,223.37,223.31,9.30641838]
[1734475370479,2.2383,223.37,223.31,11.54531838]
[1734475371374,6.76641838,223.36,223.31,2.54]
[1734475371581,9.00481838,223.36,223.31,2.54]
[1734475371984,9.00501838,223.34,223.31,2.54]
[1734475378417,2.2383,223.38,223.33,6.76641838]
[1734475378607,6.76641838,223.37,223.31,9.30641838]
[1734475379020,2.2383,223.37,223.31,11.54531838]
[1734475379223,9.00471838,223.37,223.31,9.30641838]
[1734475380317,6.76641838,223.37,223.31,9.30641838]
[1734475380512,2.2384,223.36,223.31,9.30641838]
[1734475381819,9.00481838,223.36,223.31,9.30641838]
[1734475383415,2.2385,223.35,223.31,9.30641838]
[1734475383618,2.2385,223.35,223.29,7.54561374]
[1734475383619,6.76641838,223.32,223.29,5.30651374]
[1734475383913,2.2391,223.29,223.23,2.2396]
[1734475384108,2.2391,223.29,223.24,2.8]
[1734475384810,2.2391,223.29,223.24,8.14176207]
[1734475385806,2.2391,223.29,223.24,5.34176207]
[1734475386104,2.2391,223.29,223.25,2.8]
[1734475386795,2.2392,223.28,223.25,2.8]
[1734475390096,2.2392,223.28,223.23,5.46031461]
[1734475390391,6.76641838,223.3,223.24,2.8]
[1734475391490,2.2392,223.28,223.24,2.8]
[1734475392792,6.76641838,223.26,223.21,2.8]
[1734475393387,6.76641838,223.26,223.21,8.3073503]
[1734475393594,9.00581838,223.26,223.21,8.3073503]
[1734475393797,9.00581838,223.26,223.21,5.5073503]
[1734475394089,9.00581838,223.26,223.21,8.3073503]
[1734475394795,13.5715672,223.34,223.21,2.8]
[1734475394993,6.76641838,223.27,223.21,2.8]
[1734475395293,6.76641838,223.27,223.09,2.3982]
[1734475395294,2.8,223.26,222.95,18.961531]
[1734475395495,153.53237859,223.23,222.94,5.33823724]
[1734475395694,6.76641838,223.04,222.96,2.2423]
[1734475395886,3.26,223.13,222.96,6.76641838]
[1734475396090,6.76641838,223.06,222.94,8.59823724]
[1734475396290,6.76641838,223.04,222.95,3.26]
[1734475396490,3.85887886,223.03,222.95,10.02641838]
[1734475396694,3.85887886,223.03,222.94,5.33823724]
[1734475396695,3.85887886,223.02,222.96,10.02641838]
[1734475396992,6.49581339,223.01,222.97,2.2423]
[1734475397191,6.49581339,223.0,222.94,5.33823724]
[1734475397392,6.49581339,222.99,222.94,5.33823724]
[1734475397588,3.85887886,222.98,222.96,2.2424]
[1734475397897,3.59563886,222.97,222.96,9.00881838]
[1734475398096,6.76641838,223.05,222.99,2.2421]
[1734475398392,2.62971113,223.04,222.99,2.2421]
[1734475398598,2.62971113,223.03,222.99,2.2421]
[1734475398896,2.62971113,223.02,223.0,3.26]
[1734475399098,2.62971113,223.01,223.0,3.26]
[1734475399394,6.76641838,223.05,223.0,3.26]
[1734475399596,2.62731402,223.04,223.0,5.502]
[1734475399803,2.62731402,223.03,223.0,3.26]
[1734475399996,6.76641838,223.08,223.0,3.26]
[1734475400196,6.76641838,223.08,223.02,2.2418]
[1734475400594,2.62720528,223.07,223.06,2.2414]
[1734475400900,2.62720528,223.07,223.06,5.5014]
[1734475401503,9.39362366,223.07,223.03,3.26]
[1734475401702,2.62720528,223.06,223.03,3.26]
[1734475401997,2.62720528,223.05,223.03,3.26]
[1734475402200,6.76641838,223.07,223.03,3.26]
[1734475402502,2.62089525,223.06,223.04,3.26]
[1734475402702,6.76641838,223.07,223.05,3.26]
[1734475402903,2.62087973,223.06,223.05,3.26]
[1734475408902,6.76641838,223.07,223.05,3.26]
[1734475409611,6.76641838,223.07,223.03,3.26]
[1734475409803,2.61342772,223.06,223.03,3.26]
[1734475410002,3.81227634,223.05,223.03,3.26]
[1734475410198,3.81227634,223.04,223.03,3.26]
[1734475410603,3.81227634,223.04,222.69,226.4703352]
[1734475410799,3.81227634,223.04,222.98,2.2421]
[1734475411000,6.76641838,223.03,222.98,2.2421]
[1734475411211,3.81227634,223.02,222.98,2.2421]
[1734475411404,6.76641838,223.03,222.98,2.2421]
[1734475411706,3.81021477,223.02,222.98,2.2421]
[1734475411908,6.76641838,223.03,222.98,2.2421]
[1734475412103,3.81016878,223.02,222.98,2.2421]
[1734475412404,6.76641838,223.05,222.98,2.2421]
[1734475412608,6.42054102,223.04,222.98,2.2421]
[1734475412802,3.80938287,223.03,222.98,2.2421]
[1734475413001,3.80938287,223.02,222.97,10.02641838]
[1734475413204,6.76641838,223.05,222.97,10.02641838]
[1734475413510,6.41848342,223.04,222.97,10.02641838]
[1734475413806,3.80816168,223.03,222.97,10.02641838]
[1734475414011,3.80816168,223.02,222.96,2.2424]
[1734475414210,3.80777189,223.01,222.96,10.02641838]
[1734475414511,6.76641838,223.05,222.96,10.02641838]
[1734475414710,6.41731099,223.04,222.96,10.02641838]
[1734475414906,3.80746496,223.03,222.98,6.76641838]
[1734475415107,3.80746496,223.02,222.96,3.26]
[1734475415303,3.80746496,223.01,222.98,6.76641838]
[1734475415508,6.76641838,223.06,222.98,6.76641838]
[1734475415709,3.80701097,223.05,222.98,6.76641838]
[1734475416008,6.41651267,223.04,222.98,6.76641838]
[1734475416207,3.80701097,223.03,222.98,6.76641838]
[1734475416408,3.80701097,223.02,223.0,2.2419]
[1734475416610,3.80701097,223.01,223.0,2.2419]
[1734475417406,6.76641838,223.04,223.0,5.5019]
[1734475417614,3.80667151,223.03,223.0,5.5019]
[1734475417814,3.80667151,223.02,223.0,3.26]
[1734475418115,6.76641838,223.04,223.0,3.26]
[1734475418316,3.8067529,223.03,223.0,3.26]
[1734475418616,3.8067529,223.02,223.0,3.26]
[1734475418811,6.76641838,223.04,223.0,3.26]
[1734475419009,3.80675363,223.03,223.0,3.26]
[1734475419213,3.80675363,223.02,223.01,2.2419]
[1734475419414,6.76641838,223.04,223.01,2.2419]
[1734475419715,3.80677401,223.03,223.01,2.2419]
[1734475419918,3.80677401,223.02,223.01,2.2419]
[1734475420111,3.80677401,223.02,222.91,6.7378]
[1734475420112,3.80677401,223.02,222.95,3.26]
[1734475420318,3.80677401,223.01,222.98,6.76641838]
[1734475420515,6.76641838,223.06,222.95,3.26]
[1734475420721,6.76641838,223.04,222.96,6.76641838]
[1734475420927,2.2574,223.11,222.98,6.76641838]
[1734475420928,6.41670358,223.03,222.98,6.76641838]
[1734475421112,3.80710831,223.02,222.99,2.242]
[1734475421318,3.80710831,223.01,222.99,2.242]
[1734475421512,6.76641838,223.06,222.99,2.242]
[1734475421717,6.41797298,223.05,222.99,2.242]
[1734475422022,6.41797298,223.04,223.0,2.242]
[1734475422223,6.41846592,223.03,223.0,2.242]
[1734475422429,3.8078613,223.02,223.0,2.242]
[1734475422633,3.8078613,223.01,223.0,2.242]
[1734475422823,3.8078613,223.01,223.0,5.502]
[1734475424924,3.8078613,223.01,223.0,3.26]
[1734475427327,6.42289226,223.01,223.0,3.26]
[1734475427725,6.42289226,223.01,223.0,5.502]
[1734475427929,3.8078613,223.01,223.0,5.502]
[1734475428334,6.42491618,223.01,223.0,3.26]
[1734475428534,6.42491618,223.01,222.98,5.4421]
[1734475428835,3.81788103,223.0,222.98,5.4421]
[1734475429132,3.81788103,222.99,222.98,5.4421]
[1734475429435,6.43534055,222.99,222.98,5.4421]
[1734475429630,6.43534055,222.99,222.98,3.2]
[1734475430739,6.43534055,222.99,222.96,3.2]
[1734475430935,6.43534055,222.98,222.96,3.2]
[1734475431131,3.81788103,222.97,222.96,3.2]
[1734475431332,3.81788103,223.01,222.95,2.2425]
[1734475431531,2.2418,223.02,222.95,2.2425]
[1734475431532,6.43695585,223.0,222.95,2.2425]
[1734475431736,6.43695585,222.99,222.95,2.2425]
[1734475431929,6.43695585,222.98,222.95,2.2425]
[1734475432128,9.00821838,223.02,222.95,2.2425]
[1734475432332,6.76641838,222.98,222.9,0.3844]
[1734475432533,6.44195306,222.97,222.9,0.3844]
[1734475432731,6.44195306,222.96,222.9,2.6274]
[1734475432930,6.44195306,222.95,222.92,6.76641838]
[1734475433238,6.44195306,222.94,222.91,2.2428]
[1734475433443,6.44195306,222.93,222.92,6.76641838]
[1734475433933,6.44195306,222.93,222.91,2.2428]
[1734475434130,3.82133717,222.92,222.9,9.32110664]
[1734475434433,3.82133717,222.91,222.9,0.3844]
[1734475434640,3.82133717,222.91,222.9,7.15081838]
[1734475435235,3.82133717,222.99,222.9,0.3844]
[1734475435438,6.76641838,222.96,222.9,0.3844]
[1734475435637,6.45143216,222.95,222.9,0.3844]
[1734475435831,13.21785054,222.94,222.9,0.3844]
[1734475436040,6.45143216,222.93,222.9,0.3844]
[1734475436242,2.2361,223.01,222.9,0.3844]
[1734475436243,6.45143216,222.92,222.9,0.3844]
[1734475436539,6.45143216,222.91,222.9,0.3844]
[1734475438631,6.45143216,222.91,222.88,5.38688686]
[1734475438835,6.45143216,222.9,222.88,5.38688686]
[1734475439031,2.2425,222.95,222.88,12.15330524]
[1734475439240,10.6009988,222.89,222.78,3.9]
[1734475439432,6.463121,222.88,222.78,3.9]
[1734475439637,6.463121,222.87,222.79,6.76641838]
[1734475439935,6.463121,222.86,222.8,6.76641838]
[1734475440142,6.463121,222.85,222.78,6.1441]
[1734475440344,2.2431,222.9,222.81,5.43803372]
[1734475440345,6.463121,222.84,222.81,5.43803372]
[1734475440539,6.76641838,222.87,222.81,5.43803372]
[1734475440540,6.463121,222.83,222.81,5.43803372]
[1734475440837,6.463121,222.82,222.81,5.43803372]
[1734475441140,2.62854058,222.82,222.81,5.43803372]
[1734475441346,6.46482243,222.82,222.76,6.3843]
[1734475441545,6.46482243,222.81,222.75,5.32112731]
[1734475441744,5.98500243,222.8,222.75,5.32112731]
[1734475441949,2.62854058,222.79,222.75,5.32112731]
[1734475442249,2.62854058,222.78,222.75,5.32112731]
[1734475442443,2.62854058,222.77,222.75,12.08754569]
[1734475442747,2.62854058,222.76,222.75,12.08754569]
[1734475443040,2.62854058,222.76,222.64,4.3598]
[1734475443041,2.62854058,222.82,222.54,6.18515726]
[1734475443249,6.76641838,222.75,222.57,4.2774]
[1734475443540,2.62854058,222.74,222.7,5.2870588]
[1734475443743,2.62854058,222.73,222.7,12.05347718]
[1734475443944,6.76641838,222.79,222.7,12.05347718]
[1734475444247,2.62333219,222.78,222.74,6.76641838]
[1734475444446,2.62333219,222.77,222.71,11.12641838]
[1734475444642,2.62333219,222.76,222.71,4.36]
[1734475444951,6.76641838,222.8,222.72,6.76641838]
[1734475445241,2.61903857,222.79,222.72,6.76641838]
[1734475445545,2.61903857,222.78,222.72,2.2447]
[1734475445746,2.61903857,222.78,222.57,4.2774]
[1734475445747,160.5224412,222.61,222.57,4.2774]
[1734475445936,6.7901,222.87,222.58,0.82513367]
[1734475446136,2.6170248,222.86,222.6,5.28328695]
[1734475446340,6.7901,222.87,222.61,10.9366]
[1734475446341,2.6170248,222.85,222.61,10.9366]
[1734475446540,6.76641838,222.76,222.61,10.9366]
[1734475446740,2.6170248,222.75,222.68,6.76641838]
[1734475446945,2.2438,222.82,222.68,6.76641838]
[1734475447145,6.76641838,222.77,222.68,6.76641838]
[1734475447447,6.76641838,222.77,222.68,9.01161838]
[1734475447643,6.76641838,222.77,222.68,2.2452]
[1734475447843,2.61214301,222.76,222.7,6.76641838]
[1734475448142,2.61214301,222.76,222.71,6.8448]
[1734475448346,6.76641838,222.79,222.71,6.8448]
[1734475448645,2.60988593,222.78,222.71,6.8448]
[1734475448842,2.60988593,222.77,222.71,6.8448]
[1734475449041,6.76641838,222.79,222.71,13.61121838]
[1734475449239,2.60754909,222.78,222.71,11.36641838]
[1734475449438,6.7901,222.87,222.63,4.6]
[1734475449439,6.76641838,222.73,222.63,4.6]
[1734475449644,6.76641838,222.73,222.66,6.76641838]
[1734475450248,6.76641838,222.75,222.66,9.01181838]
[1734475451242,6.76641838,222.75,222.65,4.6]
[1734475451448,6.76641838,222.75,222.66,6.76641838]
[1734475451646,6.76641838,222.75,222.64,2.2456]
[1734475451839,6.76641838,222.73,222.66,6.76641838]
[1734475452245,6.76641838,222.73,222.64,2.2456]
[1734475452541,6.76641838,222.73,222.66,6.76641838]
[1734475453348,6.76641838,222.73,222.6,5.28328695]
[1734475453551,6.76641838,222.73,222.66,6.76641838]
[1734475454146,6.76641838,222.73,222.66,11.36641838]
[1734475454454,4.5328,222.74,222.66,11.36641838]
[1734475455149,4.5328,222.74,222.66,4.6]
[1734475455150,6.76641838,222.73,222.66,4.6]
[1734475456449,6.76641838,222.75,222.67,6.76641838]
[1734475456746,6.76641838,222.75,222.66,11.36641838]
[1734475457653,167.00237859,222.99,222.68,6.76641838]
[1734475457849,6.5917,222.85,222.68,6.76641838]
[1734475458049,6.76641838,222.77,222.69,2.2451]
[1734475458353,6.76641838,222.78,222.7,6.76641838]
[1734475459250,6.76641838,222.78,222.71,2.2449]
[1734475459456,2.2439,222.81,222.71,2.2449]
[1734475459750,3.78657273,222.8,222.73,2.2447]
[1734475459952,6.76641838,222.81,222.74,4.6]
[1734475460350,3.78707385,222.8,222.74,4.6]
[1734475460654,6.76641838,222.81,222.75,6.8445]
[1734475460853,4.3755,222.85,222.76,6.76641838]
[1734475461053,10.55392815,222.84,222.76,6.76641838]
[1734475461355,3.78855399,222.83,222.76,6.76641838]
[1734475461552,6.76641838,222.84,222.76,6.76641838]
[1734475461857,3.78853922,222.83,222.76,6.76641838]
[1734475462151,6.76641838,222.84,222.76,6.76641838]
[1734475462347,3.78900682,222.83,222.76,6.76641838]
[1734475462546,6.76641838,222.84,222.78,2.2442]
[1734475462750,3.78914718,222.83,222.78,2.2442]
[1734475463052,3.78918129,222.82,222.78,2.2442]
[1734475463253,6.76641838,222.84,222.78,2.2442]
[1734475463450,3.79010392,222.83,222.78,2.2442]
[1734475463653,3.79010392,222.82,222.78,2.2442]
[1734475463854,6.76641838,222.84,222.78,2.2442]
[1734475464054,3.7901378,222.83,222.78,2.2442]
[1734475464258,3.7901378,222.82,222.78,2.2442]
[1734475464459,6.76641838,222.84,222.78,2.2442]
[1734475464659,3.79115503,222.83,222.78,2.2442]
[1734475464957,6.76641838,222.84,222.78,2.2442]
[1734475464958,3.79115503,222.82,222.78,2.2442]
[1734475465158,6.76641838,222.84,222.78,2.2442]
[1734475465355,3.79222491,222.83,222.78,2.2442]
[1734475465550,10.55864329,222.82,222.72,5.43935542]
[1734475465756,6.76641838,222.8,222.74,9.01101838]
[1734475465955,6.76641838,222.82,222.75,4.6]
[1734475466260,3.79217501,222.81,222.75,4.6]
[1734475466449,6.76641838,222.82,222.75,4.6]
[1734475466450,3.79217501,222.8,222.75,4.6]
[1734475466654,3.79217501,222.81,222.75,6.8445]
[1734475466856,3.79358219,222.8,222.75,6.8445]
[1734475467058,6.76641838,222.82,222.75,6.8445]
[1734475467262,3.7935982,222.79,222.75,6.8445]
[1734475467453,6.76641838,222.82,222.76,4.6]
[1734475467757,6.40481617,222.81,222.76,4.6]
[1734475467963,6.40481617,222.8,222.76,4.6]
[1734475468259,3.79493536,222.79,222.76,4.6]
[1734475468953,3.79493536,222.79,222.73,6.76641838]
[1734475469155,3.79493536,222.79,222.74,4.6]
[1734475469455,3.79493536,222.79,222.73,6.76641838]
[1734475469757,3.79493536,222.78,222.75,4.6]
[1734475469953,6.76641838,222.81,222.75,4.6]
[1734475470158,3.7971837,222.8,222.74,4.6]
[1734475470357,3.7971837,222.79,222.74,4.6]
[1734475470763,3.7971837,222.78,222.74,4.6]
[1734475470962,3.7971837,222.77,222.74,4.6]
[1734475471159,3.7971837,222.76,222.74,4.6]
[1734475471361,9.01031838,222.81,222.74,4.6]
[1734475471560,6.4142768,222.8,222.74,4.6]
[1734475471862,6.4142768,222.79,222.74,4.6]
[1734475472063,6.4142768,222.78,222.74,4.6]
[1734475472259,6.4142768,222.77,222.74,4.6]
[1734475472454,9.01031838,222.81,222.75,4.6]
[1734475472455,3.80052554,222.76,222.75,4.6]
[1734475472655,3.80052554,222.8,222.75,4.6]
[1734475472857,6.41721147,222.79,222.75,4.6]
[1734475473059,6.41721147,222.78,222.75,4.6]
[1734475473256,3.80052554,222.77,222.75,4.6]
[1734475473461,3.80052554,222.76,222.75,4.6]
[1734475473767,3.80052554,222.8,222.75,4.6]
[1734475473966,6.41903723,222.79,222.75,4.6]
[1734475474168,6.41903723,222.78,222.75,4.6]
[1734475474372,6.41903723,222.77,222.75,4.6]
[1734475474567,3.80052554,222.76,222.75,4.6]
[1734475474767,3.80052554,222.8,222.72,7.68405542]
[1734475475063,6.42127619,222.79,222.73,11.36641838]
[1734475475267,6.42127619,222.78,222.73,11.36641838]
[1734475475467,6.42127619,222.77,222.73,11.36641838]
[1734475475670,6.42127619,222.76,222.73,11.36641838]
[1734475475864,6.42127619,222.75,222.73,11.36641838]
[1734475476071,3.80052554,222.74,222.73,4.6]
[1734475476270,2.6251628,222.74,222.73,4.6]
[1734475476468,6.44198065,222.74,222.73,4.6]
[1734475476670,6.44198065,222.74,222.73,11.36641838]
[1734475476874,6.44198065,222.74,222.73,4.6]
[1734475477069,6.44198065,222.74,222.73,11.36641838]
[1734475479774,2.2441,222.79,222.73,11.36641838]
[1734475479975,6.45717578,222.78,222.73,11.36641838]
[1734475480177,6.45717578,222.77,222.73,11.36641838]
[1734475480370,6.45717578,222.76,222.73,11.36641838]
[1734475480674,6.45717578,222.75,222.73,4.6]
[1734475480979,6.45717578,222.74,222.73,4.6]
[1734475482368,6.45717578,222.74,222.72,6.76641838]
[1734475482565,6.45717578,222.73,222.72,11.32641838]
[1734475482966,2.2441,222.79,222.72,6.76641838]
[1734475483166,6.47608204,222.78,222.72,11.32641838]
[1734475483366,6.47608204,222.77,222.72,11.32641838]
[1734475483568,6.47608204,222.76,222.7,2.245]
[1734475483776,6.47608204,222.75,222.69,9.01151838]
[1734475484073,6.47608204,222.74,222.69,9.01151838]
[1734475484273,2.1132,222.75,222.69,9.01151838]
[1734475484274,6.47608204,222.73,222.69,9.01151838]
[1734475484471,6.47608204,222.72,222.69,9.01151838]
[1734475484670,6.47608204,222.71,222.69,2.2451]
[1734475484977,2.1132,222.75,222.7,6.76641838]
[1734475485276,6.48471865,222.74,222.7,6.76641838]
[1734475485570,6.48471865,222.73,222.7,6.76641838]
[1734475485778,6.48471865,222.72,222.7,9.01141838]
[1734475485975,6.48471865,222.71,222.7,9.01141838]
[1734475486672,2.64347048,222.71,222.7,9.01141838]
[1734475486873,6.48714435,222.71,222.7,9.01141838]
[1734475487374,6.48714435,222.71,222.7,2.245]
[1734475487575,6.48714435,222.71,222.7,9.01141838]
[1734475488171,6.48751824,222.71,222.7,2.245]
[1734475488370,6.48751824,222.71,222.68,6.8052]
[1734475488572,6.48751824,222.7,222.68,2.2452]
[1734475488773,6.48751824,222.69,222.67,2.2453]
[1734475488970,6.48751824,222.68,222.67,2.2453]
[1734475489372,6.48751824,222.68,222.53,6.5216]
[1734475489571,6.48751824,222.67,222.65,6.76641838]
[1734475489774,3.84367387,222.66,222.65,6.76641838]
[1734475489978,3.84367387,222.66,222.65,11.32641838]
[1734475491479,3.84367387,222.66,222.65,13.57191838]
[1734475492782,3.84367387,222.66,222.65,2.2455]
[1734475492783,6.48595021,222.66,222.65,2.2455]
[1734475493679,3.84367387,222.66,222.65,2.2455]
[1734475495180,3.84080475,222.66,222.65,2.2455]
[1734475498977,6.76641838,222.74,222.65,9.01191838]
[1734475499177,6.480863,222.73,222.65,9.01191838]
[1734475499379,6.480863,222.72,222.65,9.01191838]
[1734475499586,6.480863,222.71,222.65,9.01191838]
[1734475499887,6.480863,222.7,222.66,2.2454]
[1734475500088,6.480863,222.69,222.64,6.76641838]
[1734475500283,6.480863,222.68,222.63,4.56]
[1734475500588,6.480863,222.67,222.65,2.2455]
[1734475500891,3.83994574,222.66,222.65,2.2455]
[1734475501092,3.83994574,222.71,222.65,2.2455]
[1734475501294,2.6412945,222.7,222.65,2.2455]
[1734475501497,6.48182358,222.69,222.65,2.2455]
[1734475501795,6.48182358,222.68,222.65,2.2455]
[1734475501985,6.48182358,222.67,222.65,2.2455]
[1734475502190,3.84052908,222.66,222.65,2.2455]
[1734475502386,3.84171187,222.72,222.66,2.2454]
[1734475502591,6.48455373,222.71,222.66,2.2454]
[1734475502791,6.48455373,222.7,222.66,2.2454]
[1734475503095,6.48455373,222.69,222.66,2.2454]
[1734475503296,6.48455373,222.68,222.67,2.2453]
[1734475503994,6.48455373,222.68,222.67,13.57171838]
[1734475504390,2.64241237,222.68,222.67,13.57171838]
[1734475504884,6.48750638,222.68,222.67,13.57171838]
[1734475505085,6.49021217,222.68,222.67,13.57171838]
[1734475505292,6.49021217,222.68,222.67,6.8053]
[1734475507095,6.49021217,222.68,222.67,13.57171838]
[1734475507797,6.4936684,222.68,222.63,4.56]
[1734475507996,6.4936684,222.67,222.64,6.76641838]
[1734475508299,6.4936684,222.67,222.63,4.56]
[1734475508300,3.84855024,222.66,222.63,4.56]
[1734475508487,6.76641838,222.73,222.63,4.56]
[1734475508691,6.49671462,222.72,222.63,4.56]
[1734475508896,13.263133,222.71,222.63,9.01211838]
[1734475509098,6.49671462,222.7,222.63,9.01211838]
[1734475509291,6.49671462,222.69,222.63,9.01211838]
[1734475509499,6.49671462,222.68,222.63,9.01211838]
[1734475509797,6.49671462,222.67,222.63,13.57211838]
[1734475509998,6.49671462,222.66,222.63,13.57211838]
[1734475510199,6.49671462,222.65,222.63,4.56]
[1734475510394,9.01101838,222.74,222.64,9.01201838]
[1734475510592,6.49807052,222.73,222.66,6.76641838]
[1734475510797,9.01101838,222.74,222.66,6.76641838]
[1734475510993,6.76641838,222.72,222.66,6.76641838]
[1734475511300,6.49793573,222.71,222.65,9.01191838]
[1734475511499,6.49793573,222.7,222.65,9.01191838]
[1734475511799,6.49793573,222.69,222.65,6.76641838]
[1734475512004,6.49793573,222.68,222.65,6.76641838]
[1734475512189,6.49793573,222.67,222.65,6.76641838]
[1734475512389,6.49793573,222.66,222.65,9.01191838]
[1734475512799,6.49793573,222.66,222.65,2.2455]
[1734475512998,6.49793573,222.66,222.65,9.01191838]
[1734475513395,6.49793573,222.66,222.65,2.2455]
[1734475513591,6.49793573,222.66,222.65,6.76641838]
[1734475513995,6.76641838,222.72,222.65,6.76641838]
[1734475514302,6.76641838,222.72,222.63,11.32641838]
[1734475514303,6.50558357,222.71,222.63,11.32641838]
[1734475514595,6.76641838,222.69,222.63,4.56]
[1734475514801,6.50597134,222.68,222.64,6.76641838]
[1734475515005,6.50597134,222.67,222.64,6.76641838]
[1734475515200,6.50597134,222.66,222.64,6.76641838]
[1734475515501,6.50597134,222.65,222.64,6.76641838]
[1734475516394,6.50597134,222.65,222.64,9.01201838]
[1734475517399,6.5065628,222.65,222.64,9.01201838]
[1734475518294,6.5065628,222.65,222.64,2.2456]
[1734475518609,6.5065628,222.65,222.62,13.85211838]
[1734475518807,6.5065628,222.64,222.62,13.85211838]
[1734475519003,6.5065628,222.63,222.62,13.85211838]
[1734475519901,6.5065628,222.63,222.62,9.01211838]
[1734475520102,6.5065628,222.63,222.62,13.85211838]
[1734475520502,2.65124652,222.63,222.62,13.85211838]
[1734475520805,6.50778551,222.63,222.62,13.85211838]
[1734475523605,9.07091838,222.72,222.62,13.85211838]
[1734475523806,6.50625265,222.71,222.64,6.76641838]
[1734475524008,6.50625265,222.7,222.64,6.76641838]
[1734475524303,6.50615305,222.69,222.64,6.76641838]
[1734475524605,6.50615305,222.68,222.64,6.76641838]
[1734475524807,6.50615305,222.67,222.63,2.2457]
[1734475525005,6.50615305,222.66,222.63,2.2457]
[1734475525309,6.50615305,222.65,222.63,2.2457]
[1734475525608,6.50615305,222.64,222.63,2.2457]
[1734475526101,6.50615305,222.64,222.62,7.0858]
[1734475526308,6.50615305,222.63,222.62,7.0858]
[1734475526913,2.65106458,222.63,222.62,7.0858]
[1734475527116,6.50439995,222.63,222.62,7.0858]
[1734475528811,6.50439995,222.63,222.62,11.60641838]
[1734475529199,6.50439995,222.63,222.62,4.84]
[1734475529400,6.50439995,222.63,222.62,11.60641838]
[1734475529604,6.50439995,222.63,222.62,4.84]
[1734475529802,6.50439995,222.63,222.62,6.76641838]
[1734475530011,9.07091838,222.72,222.62,11.60641838]
[1734475530205,6.50036724,222.71,222.64,6.76641838]
[1734475530410,6.50036724,222.7,222.64,6.76641838]
[1734475530607,6.50036724,222.69,222.64,6.76641838]
[1734475530811,6.50036724,222.68,222.64,6.76641838]
[1734475531109,9.07091838,222.72,222.64,6.76641838]
[1734475531110,6.50036724,222.67,222.64,6.76641838]
[1734475531312,6.50036724,222.66,222.64,6.76641838]
[1734475531511,6.50036724,222.65,222.64,6.76641838]
[1734475533713,3.8514529,222.65,222.64,6.76641838]
[1734475534008,6.49960448,222.65,222.64,6.76641838]
[1734475536305,6.49960448,222.65,222.64,9.01201838]
[1734475536503,6.49948053,222.65,222.64,9.01201838]
[1734475539206,6.49948053,222.65,222.64,6.76641838]
[1734475539718,2.64802763,222.65,222.64,6.76641838]
[1734475540016,6.49674641,222.65,222.62,7.0858]
[1734475540216,6.49674641,222.64,222.63,6.76641838]
[1734475541407,6.49674641,222.64,222.63,9.01211838]
[1734475542913,6.49175357,222.64,222.63,9.01211838]
[1734475543116,6.49175357,222.64,222.63,2.2457]
[1734475543313,2.64802763,222.64,222.62,4.84]
[1734475543614,6.49019621,222.63,222.62,4.84]
[1734475544120,6.49019621,222.63,222.62,7.0857]
[1734475546120,4.5493,222.72,222.62,7.0857]
[1734475546325,6.48788931,222.71,222.62,7.0857]
[1734475546511,6.48788931,222.7,222.62,7.0857]
[1734475546821,6.48788931,222.69,222.62,7.0857]